fUSD/lending_fUSD_20260126
["ID","MTS","AMOUNT","RATE_DAILY","PERIOD"]
[403639567,1769441547429,500.0,0.00016,30]
[403639568,1769441547900,500.0,0.00015,30]
[403639569,1769441548425,700.0,0.00015,30]
[403639579,1769441848037,500.0,0.00016,30]
[403639583,1769441917122,1684.24,0.00019178,30]
[403639585,1769442037381,-500.0,0.00011773,2]
[403639586,1769442037403,-507.95507628,0.00011773,2]
[403639587,1769442037430,-500.0,0.00011773,2]
[403639588,1769442037453,-246.0,0.00011773,2]
[403639589,1769442037476,-1000.0,0.00012321,2]
[403639590,1769442037501,-1000.0,0.00012321,2]
[403639591,1769442037524,-600.0,0.00014411,2]
[403639592,1769442177312,-150.00428935,0.00015077,2]
[403639593,1769442177340,-151.0,0.00016028,2]
[403639594,1769442177368,-151.0,0.00016092,2]
[403639595,1769442177395,-600.0,0.00016386,2]
[403639596,1769442177421,-798.0,0.00016438,2]
[403639597,1769442177451,-204.45,0.00016481,2]
[403639598,1769442177478,-1000.0,0.00016489,2]
[403639599,1769442177506,-150.00428935,0.00016548,2]
[403639600,1769442177532,-1776.7828426,0.00016549,2]
[403639601,1769442178098,-37.5271574,0.00016549,2]
[403639602,1769442178130,-1000.0,0.00016556,2]
[403639603,1769442178158,-1000.0,0.00016703,2]
[403639604,1769442178185,-500.0,0.00016813,2]
[403639605,1769442178213,-171.44,0.00016866,2]
[403639606,1769442178240,-315.45,0.00016986,2]
[403639607,1769442178268,-322.6107,0.00017099,2]
[403639608,1769442178416,-447.84213453,0.00017099,2]
[403639609,1769442178456,-895.68426906,0.00017099,2]
[403639610,1769442178517,-1791.36853812,0.00017099,2]
[403639611,1769442178555,-3582.73707624,0.00017099,2]
[403639612,1769442178954,-2834.53584752,0.00017099,2]
[403639613,1769442178983,-787.93830496,0.00017099,2]
[403639614,1769442179308,-151.0,0.00015991,2]
[403639615,1769442179336,-2755.06169504,0.00017099,2]
[403639616,1769442179364,-174.61919141,0.00017099,2]
[403639617,1769442179392,-578.20924308,0.00017099,2]
[403639618,1769442179419,-158.77791206,0.00017115,2]
[403639619,1769442179514,-4468.48749373,0.00017154,2]
[403639620,1769442179550,-1063.03501254,0.00017154,2]
[403639621,1769442179578,-204.45,0.00017396,2]
[403639622,1769442179607,-166.66,0.00017416,2]
[403639623,1769442179636,-613.4,0.00017451,2]
[403639624,1769442179666,-613.4,0.00017501,2]
[403639625,1769442179694,-150.0,0.00017507,2]
[403639626,1769442179722,-150.0,0.00017507,2]
[403639627,1769442179750,-150.0,0.00017507,2]
[403639628,1769442179779,-150.0,0.00017507,2]
[403639629,1769442179807,-150.0,0.00017507,2]
[403639630,1769442179836,-500.0,0.00017507,2]
[403639631,1769442179871,-500.0,0.00017507,2]
[403639632,1769442179901,-500.0,0.00017507,2]
[403639633,1769442179930,-28.11997492,0.00017507,2]
[403639634,1769442180019,-121.88002508,0.00017507,2]
[403639635,1769442180048,-150.0,0.00017507,2]
[403639636,1769442180076,-670.0,0.00017507,2]
[403639637,1769442180104,-150.0,0.00017507,2]
[403639638,1769442180133,-613.4,0.00017551,2]
[403639639,1769442180162,-150.0,0.00017562,2]
[403639640,1769442180192,-150.0,0.00017562,2]
[403639641,1769442180222,-150.0,0.00017562,2]
[403639642,1769442180251,-150.0,0.00017562,2]
[403639643,1769442180280,-500.0,0.00017562,2]
[403639644,1769442180322,-500.0,0.00017562,2]
[403639645,1769442180608,-500.0,0.00017562,2]
[403639646,1769442180638,-150.0,0.00017562,2]
[403639647,1769442180668,-670.0,0.00017562,2]
[403639648,1769442180698,-150.0,0.00017562,2]
[403639649,1769442180869,-613.4,0.00017601,2]
[403639650,1769442180902,-500.0,0.00017607,2]
[403639651,1769442180933,-150.0,0.00017607,2]
[403639652,1769442180963,-150.0,0.00017617,2]
[403639653,1769442180999,-200.0,0.00017617,2]
[403639654,1769442181034,-150.0,0.00017617,2]
[403639655,1769442181065,-151.72557844,0.00017617,2]
[403639656,1769442181095,-500.0,0.00017617,2]
[403639657,1769442181131,-500.0,0.00017617,2]
[403639658,1769442181160,-500.0,0.00017617,2]
[403639659,1769442181190,-154.14477787,0.00017617,2]
[403639660,1769442181220,-670.0,0.00017617,2]
[403639661,1769442181254,-150.0,0.00017617,2]
[403639662,1769442181443,-3280.0718,0.0001762,2]
[403639663,1769442181728,-3439.8664,0.0001762,2]
[403639664,1769442181757,-237.0846,0.0001762,2]
[403639665,1769442181787,-770.40729858,0.00017626,2]
[403639666,1769442181819,-500.0,0.00017626,2]
[403639667,1769442181924,-1590.26842425,0.00017626,2]
[403639668,1769442181954,-315.49661234,0.00017626,2]
[403639669,1769442181984,-154.54337303,0.00017626,2]
[403639670,1769442182013,-1641.88907667,0.00017638,2]
[403639671,1769442183774,-300.0,0.00017098,2]
[403639672,1769442183805,-2595.61502742,0.00017638,2]
[403639673,1769442183835,-152.72824357,0.0001764,2]
[403639674,1769442183870,-181.08010149,0.00017647,2]
[403639675,1769442183904,-613.4,0.00017651,2]
[403639676,1769442183946,-2998.014,0.00017653,2]
[403639677,1769442183977,-189.28,0.00017653,2]
[403639678,1769442184008,-770.40729857,0.00017656,2]
[403639679,1769442184038,-494.33897861,0.00017656,2]
[403639680,1769442184205,-1095.92944564,0.00017656,2]
[403639681,1769442184236,-500.0,0.00017662,2]
[403639682,1769442184265,-150.0,0.00017662,2]
[403639683,1769442184294,-154.54337299,0.00017665,2]
[403639684,1769442184322,-150.0,0.00017671,2]
[403639685,1769442184350,-280.72866755,0.00017671,2]
[403639686,1769442184382,-500.0,0.00017671,2]
[403639687,1769442184411,-500.0,0.00017671,2]
[403639688,1769442184441,-670.0,0.00017671,2]
[403639689,1769442184470,-500.0,0.00017681,2]
[403639690,1769442184499,-227.19972907,0.00017687,2]
[403639691,1769442184653,-543.2075695,0.00017687,2]
[403639692,1769442184682,-1590.26842425,0.00017687,2]
[403639693,1769442184712,-613.4,0.00017701,2]
[403639694,1769442184742,-154.54337299,0.00017704,2]
[403639695,1769442184771,-500.0,0.00017717,2]
[403639696,1769442184802,-150.0,0.00017717,2]
[403639697,1769442184832,-151.0,0.00017717,2]
[403639698,1769442184868,-770.40729857,0.00017717,2]
[403639699,1769442184946,-1590.26842425,0.00017717,2]
[403639700,1769442184978,-171.05724829,0.00017719,2]
[403639701,1769442185006,-500.0,0.00017719,2]
[403639702,1769442185037,-500.0,0.00017719,2]
[403639703,1769442185071,-500.0,0.00017719,2]
[403639704,1769442185099,-298.53222254,0.00017719,2]
[403639705,1769442185131,-500.0,0.00017719,2]
[403639706,1769442185163,-500.0,0.00017719,2]
[403639707,1769442185196,-380.29420984,0.00017719,2]
[403639708,1769442186042,-119.70579016,0.00017719,2]
[403639709,1769442186077,-500.0,0.00017719,2]
[403639710,1769442186113,-500.0,0.00017719,2]
[403639711,1769442186147,-500.0,0.00017719,2]
[403639712,1769442186180,-500.0,0.00017719,2]
[403639713,1769442186213,-500.0,0.00017719,2]
[403639714,1769442186244,-500.0,0.00017719,2]
[403639715,1769442186276,-500.0,0.00017719,2]
[403639716,1769442186306,-276.68326115,0.00017719,2]
[403639717,1769442186337,-500.0,0.00017719,2]
[403639718,1769442186371,-500.0,0.00017719,2]
[403639719,1769442186556,-500.0,0.00017719,2]
[403639720,1769442186589,-500.0,0.00017719,2]
[403639721,1769442186625,-500.0,0.00017719,2]
[403639722,1769442186656,-500.0,0.00017719,2]
[403639723,1769442186690,-500.0,0.00017719,2]
[403639724,1769442186723,-500.0,0.00017719,2]
[403639725,1769442186755,-500.0,0.00017719,2]
[403639726,1769442186788,-500.0,0.00017719,2]
[403639727,1769442186823,-500.0,0.00017719,2]
[403639728,1769442186860,-500.0,0.00017719,2]
[403639729,1769442186975,-500.0,0.00017719,2]
[403639730,1769442187008,-500.0,0.00017719,2]
[403639731,1769442187041,-500.0,0.00017719,2]
[403639732,1769442187073,-354.20253086,0.00017719,2]
[403639733,1769442187104,-645.79746914,0.00017719,2]
[403639734,1769442187139,-500.0,0.00017719,2]
[403639735,1769442187168,-181.15736508,0.00017719,2]
[403639736,1769442187199,-500.0,0.00017719,2]
[403639737,1769442187227,-500.0,0.00017719,2]
[403639738,1769442187255,-177.36972966,0.00017719,2]
[403639739,1769442187284,-500.0,0.00017719,2]
[403639740,1769442187717,-623.87523169,0.00017719,2]
[403639741,1769442187749,-500.0,0.00017719,2]
[403639742,1769442188505,-1406.74876121,0.000171,2]
[403639777,1769442615801,1000.0,0.00021,30]
[403639783,1769442631818,-166.66,0.00015807,2]
[403639784,1769442631828,-151.0,0.00015888,2]
[403639785,1769442631838,-166.66,0.0001614,2]
[403639786,1769442631849,-166.66,0.00016473,2]
[403639787,1769442631859,-904.982643,0.00016564,2]
[403639788,1769442631869,-219.46627378,0.00016648,2]
[403639789,1769442631879,-150.0,0.00016718,2]
[403639790,1769442631888,-831.0,0.0001672,2]
[403639791,1769442631898,-349.16,0.00016741,2]
[403639792,1769442631907,-1566.33,0.00016748,2]
[403639793,1769442631917,-166.66,0.00016806,2]
[403639794,1769442631927,-3088.10108322,0.00016877,2]
[403639795,1769442631938,-209.19891678,0.00016877,2]
[403639796,1769442631948,-334.10108322,0.00016884,2]
[403639797,1769442632004,-120.52200993,0.00016884,2]
[403639798,1769442632015,-160.064,0.00016884,2]
[403639799,1769442632025,-158.77791206,0.00017115,2]
[403639800,1769442632035,-578.20924308,0.00017138,2]
[403639801,1769442632045,-166.66,0.00017138,2]
[403639802,1769442632056,-560.38,0.00017255,2]
[403639803,1769442632066,-64.34683493,0.00017342,2]
[403639804,1769442632078,-437.65316507,0.00017342,2]
[403639805,1769442632088,-1200.0,0.00017449,2]
[403639806,1769442632098,-306.7,0.00017451,2]
[403639807,1769442632107,-166.66,0.00017471,2]
[403639808,1769442632117,-238.16640432,0.00017486,2]
[403639809,1769442632127,-628.52490916,0.00017486,2]
[403639810,1769442632136,-1108.7924412,0.00017486,2]
[403639811,1769442632146,-1658.68717951,0.00017486,2]
[403639812,1769442632156,-2244.2607,0.00017486,2]
[403639813,1769442632166,-306.7,0.00017501,2]
[403639814,1769442632175,-560.38,0.00017529,2]
[403639815,1769442632193,-150.0,0.00017534,2]
[403639816,1769442632205,-150.0,0.00017534,2]
[403639817,1769442632217,-500.0,0.00017534,2]
[403639818,1769442632227,-500.0,0.00017534,2]
[403639819,1769442632239,-500.0,0.00017534,2]
[403639820,1769442632248,-1000.0,0.00017534,2]
[403639821,1769442632257,-500.0,0.00017535,2]
[403639823,1769442632269,-150.0,0.00017535,2]
[403639825,1769442632278,-558.0,0.00017535,2]
[403639827,1769442632288,-306.7,0.00017551,2]
[403639829,1769442632298,-150.0,0.00017589,2]
[403639832,1769442632309,-250.0,0.00017589,2]
[403639834,1769442632318,-500.0,0.00017589,2]
[403639836,1769442632328,-500.0,0.00017589,2]
[403639838,1769442632338,-500.0,0.00017589,2]
[403639840,1769442632347,-500.0,0.0001759,2]
[403639842,1769442632357,-558.0,0.0001759,2]
[403639844,1769442632366,-306.7,0.00017601,2]
[403639846,1769442632376,-1000.0,0.0001762,2]
[403639848,1769442632385,-903.0922,0.0001762,2]
[403639850,1769442632395,-210.3310749,0.0001762,2]
[403639852,1769442632404,-1272.2147394,0.0001762,2]
[403639854,1769442632414,-1733.4895823,0.00017621,2]
[403639856,1769442632423,-152.72824357,0.0001764,2]
[403639858,1769442632433,-200.0,0.00017644,2]
[403639860,1769442632443,-500.0,0.00017644,2]
[403639862,1769442632452,-500.0,0.00017644,2]
[403639864,1769442632462,-500.0,0.00017644,2]
[403639866,1769442632471,-500.0,0.00017645,2]
[403639868,1769442632481,-558.0,0.00017645,2]
[403639870,1769442632491,-295.86658145,0.00017651,2]
[403639872,1769442632500,-306.7,0.00017651,2]
[403639874,1769442632510,-1272.2147394,0.00017651,2]
[403639876,1769442632520,-1272.2147394,0.00017682,2]
[403639879,1769442632529,-11454.5709156,0.00017683,2]
[403639880,1769442632539,-3918.7042688,0.00017683,2]
[403639883,1769442632549,-500.0,0.00017698,2]
[403639885,1769442632559,-500.0,0.00017698,2]
[403639887,1769442632568,-500.0,0.00017698,2]
[403639889,1769442632578,-500.0,0.00017699,2]
[403639891,1769442632588,-558.0,0.00017699,2]
[403639893,1769442632598,-306.7,0.00017701,2]
[403639895,1769442632607,-3543.0,0.00017709,2]
[403639897,1769442632618,-721.12765535,0.00017709,2]
[403639899,1769442632628,-500.0,0.00017709,2]
[403639901,1769442632638,-500.0,0.00017709,2]
[403639903,1769442632647,-250.0,0.00017709,2]
[403639905,1769442632657,-500.0,0.00017709,2]
[403639907,1769442632666,-250.0,0.00017709,2]
[403639909,1769442632676,-500.0,0.00017709,2]
[403639911,1769442632685,-250.0,0.00017709,2]
[403639913,1769442632694,-500.0,0.00017709,2]
[403639915,1769442632704,-250.0,0.00017709,2]
[403639917,1769442632715,-250.0,0.00017709,2]
[403639919,1769442632725,-500.0,0.00017709,2]
[403639921,1769442632736,-313.34353873,0.00017709,2]
[403639923,1769442632748,-500.0,0.00017709,2]
[403639925,1769442632760,-500.0,0.00017709,2]
[403639927,1769442632770,-500.0,0.00017709,2]
[403639928,1769442632780,-500.0,0.00017709,2]
[403639929,1769442632791,-500.0,0.00017709,2]
[403639930,1769442632801,-250.0,0.00017709,2]
[403639931,1769442632812,-322.6107,0.00017709,2]
[403639932,1769442632821,-250.0,0.00017709,2]
[403639933,1769442632831,-250.0,0.00017709,2]
[403639934,1769442632841,-250.0,0.00017709,2]
[403639935,1769442632851,-250.0,0.00017709,2]
[403639936,1769442632861,-250.0,0.00017709,2]
[403639937,1769442632870,-250.0,0.00017709,2]
[403639938,1769442632880,-250.0,0.00017709,2]
[403639939,1769442632890,-250.0,0.00017709,2]
[403639940,1769442632900,-250.0,0.00017709,2]
[403639941,1769442632910,-250.0,0.00017709,2]
[403639942,1769442632919,-174.61919141,0.00017709,2]
[403639943,1769442632929,-250.0,0.00017709,2]
[403639944,1769442632939,-250.0,0.00017709,2]
[403639945,1769442632948,-250.0,0.00017709,2]
[403639946,1769442632958,-250.0,0.00017709,2]
[403639947,1769442632968,-250.0,0.00017709,2]
[403639948,1769442632980,-250.0,0.00017709,2]
[403639949,1769442632990,-250.0,0.00017709,2]
[403639950,1769442633000,-250.0,0.00017709,2]
[403639951,1769442633010,-250.0,0.00017709,2]
[403639952,1769442633024,-854.2589148,0.00017709,2]
[403639953,1769442633035,-250.0,0.00017709,2]
[403639954,1769442633045,-385.40135603,0.00017709,2]
[403639955,1769442633056,-250.0,0.00017709,2]
[403639956,1769442633066,-691.39774486,0.00017709,2]
[403639957,1769442633076,-250.0,0.00017709,2]
[403639958,1769442633087,-250.0,0.00017709,2]
[403639959,1769442633098,-250.0,0.00017709,2]
[403639960,1769442633107,-250.0,0.00017709,2]
[403639961,1769442633117,-250.0,0.00017709,2]
[403639962,1769442633126,-250.0,0.00017709,2]
[403639963,1769442633136,-365.99673536,0.00017709,2]
[403639964,1769442633146,-250.0,0.00017709,2]
[403639965,1769442633155,-250.0,0.00017709,2]
[403639966,1769442633165,-250.0,0.00017709,2]
[403639967,1769442633175,-250.0,0.00017709,2]
[403639968,1769442633184,-250.0,0.00017709,2]
[403639969,1769442633194,-281.77574976,0.00017709,2]
[403639970,1769442633204,-151.0,0.00017709,2]
[403639971,1769442633214,-1272.2147394,0.00017713,2]
[403639972,1769442633223,-200.0,0.00017719,2]
[403639973,1769442633233,-500.0,0.00017719,2]
[403639974,1769442633242,-450.27275334,0.00017719,2]
[403639975,1769442633252,-500.0,0.00017719,2]
[403639976,1769442633262,-474.15881077,0.00017719,2]
[403639977,1769442633274,-500.0,0.00017719,2]
[403639978,1769442633284,-500.0,0.00017719,2]
[403639979,1769442633294,-500.0,0.00017719,2]
[403639980,1769442633304,-154.8450533,0.00017719,2]
[403639981,1769442633315,-150.0,0.00017719,2]
[403639982,1769442633326,-200.0,0.00017719,2]
[403639983,1769442633336,-1257.41754705,0.00017719,5]
[403639984,1769442633346,-19246.55574606,0.0001772,2]
[403639985,1769442634167,-6730.39635027,0.0001772,2]
[403639986,1769442634244,-305.0,0.0001772,2]
[403639987,1769442634256,-575.39949492,0.0001772,2]
[403639988,1769442634268,-822.10562034,0.0001772,2]
[403639992,1769442639116,-151.0,0.00015885,2]
[403639993,1769442639127,-649.0,0.0001772,2]
[403639994,1769442639286,-4802.71317837,0.0001772,2]
[403639995,1769442639299,-1406.40709572,0.0001772,2]
[403639996,1769442639311,-6879.88386471,0.0001772,2]
[403639997,1769442639323,-1092.49848465,0.0001772,2]
[403639998,1769442639334,-815.78503878,0.0001772,2]
[403639999,1769442639346,-258.73756494,0.0001772,2]
[403640000,1769442639362,-1402.49229,0.0001772,2]
[403640058,1769442640069,-1470.18332033,0.0001762,2]
[403640060,1769442640081,-1029.81667967,0.0001762,2]
[403640062,1769442640091,-955013.02527124,0.0001772,2]
[403640064,1769442640101,-600.01,0.0001772,2]
[403640066,1769442640111,-600.01,0.0001772,2]
[403640069,1769442640125,-600.01,0.0001772,2]
[403640070,1769442640136,-600.01,0.0001772,2]
[403640071,1769442640146,-828.63,0.0001772,2]
[403640072,1769442640156,-229.20824283,0.00017725,2]
[403640073,1769442640166,-1272.2147394,0.00017744,2]
[403640074,1769442640176,-306.7,0.0001775,2]
[403640075,1769442640186,-375.04776947,0.00017753,2]
[403640076,1769442640196,-500.0,0.00017753,2]
[403640077,1769442640206,-500.0,0.00017753,2]
[403640078,1769442640216,-500.0,0.00017754,2]
[403640079,1769442640226,-558.0,0.00017754,2]
[403640080,1769442640237,-210.33107488,0.0001776,2]
[403640081,1769442640247,-1272.2147394,0.00017776,2]
[403640082,1769442640257,-306.7,0.000178,2]
[403640083,1769442640267,-560.38,0.00017803,2]
[403640084,1769442640277,-1272.2147394,0.00017807,2]
[403640085,1769442640287,-500.0,0.00017808,2]
[403640087,1769442640297,-323.95112934,0.00017808,2]
[403640089,1769442640306,-1000.0,0.00017808,2]
[403640091,1769442640315,-500.0,0.00017809,2]
[403640093,1769442640329,-558.0,0.00017809,2]
[403640095,1769442640339,-8081.75591382,0.0001782,2]
[403640097,1769442640349,-2000.0,0.0001782,2]
[403640099,1769442640359,-2000.0,0.0001782,2]
[403640101,1769442640369,-2000.0,0.0001782,2]
[403640103,1769442640379,-2000.0,0.0001782,2]
[403640105,1769442640389,-1272.2147394,0.00017838,2]
[403640108,1769442640399,-225.0,0.00017843,2]
[403640109,1769442640410,-306.7,0.0001785,2]
[403640110,1769442640419,-200.0,0.00017856,2]
[403640111,1769442640429,-500.0,0.00017863,2]
[403640112,1769442640440,-500.0,0.00017864,2]
[403640113,1769442640450,-558.0,0.00017864,2]
[403640114,1769442640460,-1272.2147394,0.00017869,2]
[403640115,1769442640471,-865.25,0.00017881,2]
[403640116,1769442640481,-865.25,0.00017881,2]
[403640117,1769442640490,-865.25,0.00017881,2]
[403640118,1769442640500,-865.25,0.00017881,2]
[403640119,1769442640514,-865.25,0.00017881,2]
[403640120,1769442640525,-865.25,0.00017881,2]
[403640121,1769442640536,-865.25,0.00017881,2]
[403640122,1769442640546,-865.25,0.00017881,2]
[403640123,1769442640556,-865.25,0.00017881,2]
[403640124,1769442640566,-865.25,0.00017881,2]
[403640125,1769442640575,-865.25,0.00017881,2]
[403640126,1769442640584,-865.25,0.00017881,2]
[403640127,1769442640595,-865.25,0.00017881,2]
[403640128,1769442640605,-865.25,0.00017881,2]
[403640129,1769442640615,-865.25,0.00017881,2]
[403640131,1769442640624,-865.25,0.00017881,2]
[403640133,1769442640634,-865.25,0.00017881,2]
[403640135,1769442640643,-865.25,0.00017881,2]
[403640137,1769442640653,-865.25,0.00017881,2]
[403640139,1769442640663,-865.25,0.00017881,2]
[403640141,1769442640672,-865.25,0.00017881,2]
[403640143,1769442640682,-865.25,0.00017881,2]
[403640145,1769442640691,-865.25,0.00017881,2]
[403640147,1769442640701,-865.42394964,0.00017881,2]
[403640149,1769442640712,-200.0,0.00017896,2]
[403640151,1769442640723,-200.0,0.00017896,2]
[403640153,1769442640732,-1876.53606103,0.000179,2]
[403640155,1769442640742,-403.33621086,0.000179,2]
[403640157,1769442640752,-306.7,0.000179,2]
[403640159,1769442640761,-210.33107488,0.000179,2]
[403640161,1769442640772,-1272.2147394,0.000179,2]
[403640163,1769442640782,-4610.0,0.000179,2]
[403640165,1769442640791,-500.0,0.00017918,2]
[403640167,1769442640801,-500.0,0.00017919,2]
[403640168,1769442640811,-558.0,0.00017919,2]
[403640169,1769442640820,-168.0,0.00017934,2]
[403640170,1769442640829,-306.7,0.0001795,2]
[403640171,1769442640840,-500.0,0.00017972,2]
[403640172,1769442640851,-500.0,0.00017973,2]
[403640173,1769442640861,-500.0,0.00017973,2]
[403640174,1769442640870,-558.0,0.00017973,2]
[403640175,1769442640880,-500.0,0.00017982,2]
[403640176,1769442640890,-152.21,0.00017985,2]
[403640177,1769442640901,-152.21,0.0001799,2]
[403640178,1769442640911,-152.21,0.0001799,2]
[403640179,1769442640921,-152.21,0.0001799,2]
[403640180,1769442640931,-152.21,0.0001799,2]
[403640181,1769442640941,-152.21,0.0001799,2]
[403640182,1769442640951,-152.21,0.0001799,2]
[403640183,1769442640961,-152.21,0.0001799,2]
[403640184,1769442640971,-152.21,0.0001799,2]
[403640185,1769442640984,-152.21,0.0001799,2]
[403640186,1769442640994,-152.21,0.0001799,2]
[403640187,1769442641003,-152.21,0.0001799,2]
[403640188,1769442641015,-152.21,0.0001799,2]
[403640189,1769442641025,-152.21,0.0001799,2]
[403640190,1769442641034,-152.21,0.0001799,2]
[403640191,1769442641044,-152.21,0.0001799,2]
[403640192,1769442641056,-152.21,0.0001799,2]
[403640193,1769442641066,-166.66,0.0001799,2]
[403640194,1769442641075,-2486.1172941,0.00017995,2]
[403640195,1769442641085,-60259.3076707,0.00017995,2]
[403640196,1769442641095,-4954.6748204,0.00017995,2]
[403640197,1769442641116,-1187.29942836,0.00017999,5]
[403640198,1769442641126,-1187.29942836,0.00017999,5]
[403640199,1769442641137,-1187.29942835,0.00017999,5]
[403640200,1769442641147,-201.139,0.00017999,2]
[403640201,1769442641157,-300.0,0.00017999,2]
[403640202,1769442641167,-150.0,0.00017999,2]
[403640203,1769442641177,-3647712.13453832,0.00018,2]
[403640204,1769442641283,-2878.68531395,0.00018,2]
[403640205,1769442642513,-2834.18565121,0.00018,2]
[403640206,1769442642598,-10000.01,0.00018,2]
[403640209,1769442642747,-10000.01,0.00018,2]
[403640210,1769442642852,-10000.01,0.00018,2]
[403640213,1769442642976,-10000.01,0.00018,2]
[403640214,1769442642988,-6151.31103844,0.00018,2]
[403640215,1769442643095,-10000.01,0.00018,2]
[403640216,1769442643250,-10000.01,0.00018,2]
[403640217,1769442643272,-1693.19277323,0.00018,2]
[403640218,1769442643283,-571.98985891,0.00018,2]
[403640219,1769442643375,-10000.01,0.00018,2]
[403640220,1769442643531,-10000.01,0.00018,2]
[403640227,1769442643782,-10000.01,0.00018,2]
[403640228,1769442643893,-10000.01,0.00018,2]
[403640229,1769442644017,-10000.01,0.00018,2]
[403640230,1769442644152,-10000.01,0.00018,2]
[403640231,1769442644771,-10000.01,0.00018,2]
[403640232,1769442644785,-10000.01,0.00018,2]
[403640264,1769442646809,-1643.4703198,0.00018,2]
[403640266,1769442648359,-10000.01,0.00018,2]
[403640267,1769442648500,-10000.01,0.00018,2]
[403640268,1769442648632,-10000.01,0.00018,2]
[403640269,1769442648762,-10000.01,0.00018,2]
[403640270,1769442648938,-10000.01,0.00018,2]
[403640271,1769442649083,-10000.01,0.00018,2]
[403640272,1769442649191,-10000.01,0.00018,2]
[403640273,1769442649314,-10000.01,0.00018,2]
[403640274,1769442649437,-10000.01,0.00018,2]
[403640275,1769442649552,-10000.01,0.00018,2]
[403640276,1769442649652,-10000.01,0.00018,2]
[403640277,1769442649747,-10000.01,0.00018,2]
[403640278,1769442649879,-10000.01,0.00018,2]
[403640279,1769442649999,-10000.01,0.00018,2]
[403640280,1769442699531,626.90314504,0.0001472,2]
[403640289,1769442818372,185.3,0.00013593,2]
[403640294,1769443114269,-1000.0,0.00015853,2]
[403640295,1769443114314,-250.0,0.00017,2]
[403640296,1769443114373,-150.00360307,0.00017,2]
[403640297,1769443114408,-344.3114294,0.00017,2]
[403640298,1769443114444,-578.20924308,0.00017095,2]
[403640299,1769443114476,-158.77791206,0.000171,2]
[403640300,1769443114510,-300.0,0.00017389,2]
[403640301,1769443114543,-375.30721223,0.0001739,2]
[403640302,1769443114577,-1232.65167774,0.0001739,2]
[403640303,1769443114607,-210.33107488,0.0001739,2]
[403640304,1769443114642,-37.49685144,0.0001739,2]
[403640305,1769443114849,-725.8319922,0.0001739,2]
[403640306,1769443114880,-154.54337299,0.0001739,2]
[403640307,1769443114911,-403.33621086,0.0001739,2]
[403640308,1769443114942,-1232.65167771,0.00017447,2]
[403640309,1769443114974,-763.32884364,0.00017447,2]
[403640310,1769443115005,-153.3,0.00017472,2]
[403640311,1769443115035,-260.0,0.00017488,2]
[403640312,1769443115064,-264.05201689,0.00017489,2]
[403640313,1769443115095,-500.0,0.00017489,2]
[403640314,1769443115127,-194.38574049,0.00017489,2]
[403640315,1769443115159,-100.27255076,0.00017489,2]
[403640316,1769443115378,-496.60518892,0.00017489,2]
[403640317,1769443115408,-500.0,0.00017489,2]
[403640318,1769443115440,-647.68539864,0.00017489,2]
[403640319,1769443115483,-500.0,0.00017489,2]
[403640320,1769443115523,-500.0,0.00017489,2]
[403640321,1769443115561,-500.0,0.00017489,2]
[403640322,1769443115598,-500.0,0.00017489,2]
[403640323,1769443115633,-500.0,0.00017489,2]